Cogmind - Beta 15 @@@ ROGUE MODE // 2025.08.06 @ 16:02:51 Player: TapeIsSticky Result: Destroyed by 6X-B9M(R) with Subdweller Laser Performance ------------- Evolutions (0) 0 Regions Visited (2) 400 Robots Destroyed (22) 110 Value Destroyed (460) 460 Prototype IDs (11) 220 Alien Tech Used (0) 0 Bonus (0) 0 TOTAL SCORE: 1190 Bonus ------- None Cogmind --------- Core Integrity 0/250 Matter 282/300 Energy 61/100 System Corruption 0% Temperature Cool (6) Movement Treading (160) Location -10/Subcaves Parts ------- > --- POWER (1) -------- Subdweller Power Source > --- PROPULSION (2) --- Light Treads > --- UTILITY (2) ------ (None) > --- WEAPON (2) ------- Subdweller Laser Subdweller Machine Gun > --- INVENTORY (5) ---- Subdweller Laser Barrage Gun Battle Cannon Subdweller Shrapnel Launcher Scrap Shield Fragment (40) Peak State ------------ > --- POWER ------------ Ion Engine > --- PROPULSION ------- Light Treads Spiked Treads > --- UTILITY ---------- Scrap Shield > --- WEAPON ----------- Subdweller Machine Gun Subdweller Machine Gun > --- INVENTORY -------- Light Treads Subdweller Laser Battle Cannon Subdweller Shrapnel Launcher [Rating: 12] Favorites ----------- Power Ion Engine Engine Ion Engine Propulsion Light Treads Treads Light Treads Utility Scrap Shield Device Seismic Detector Storage Small Storage Unit Protection Scrap Shield Weapon Subdweller Machine Gun Energy Gun Subdweller Laser Energy Cannon Subdweller Beam Cannon Ballistic Gun Subdweller Machine Gun Ballistic Cannon Battle Cannon Build | -11 -10 -10 ------- Run | Yrd Mat Sub Slots Evolved . | . . . Power . | . . . Propulsion . | . . . Utility . | . . . Weapon . | . . . Parts Attached 21 | 7 1 13 Power 2 | 1 . 1 Engine 2 | 1 . 1 Core . | . . . Reactor . | . . . Propulsion 4 | 2 . 2 Treads 4 | 2 . 2 Leg . | . . . Wheel . | . . . Hover . | . . . Flight . | . . . Utility 5 | 2 1 2 Device 2 | 1 . 1 Storage 2 | 1 1 . Processor . | . . . Hackware . | . . . Protection 1 | . . 1 Artifact . | . . . Weapon 10 | 2 . 8 Energy Gun 2 | . . 2 Energy Cannon 1 | . . 1 Ballistic Gun 6 | 2 . 4 Ballistic Cannon 1 | . . 1 Launcher . | . . . Special Weapon . | . . . Impact Weapon . | . . . Slashing Weapon . | . . . Piercing Weapon . | . . . Special Melee Weapon . | . . . Unidentified Prototypes . | . . . Parts Lost 7 | . . 7 Power 1 | . . 1 Propulsion 3 | . . 3 Utility 3 | . . 3 Weapon . | . . . Highest Loss Streak 2 | . . 2 To Critical Strikes . | . . . Average Backups 4 | 2 5 4 Power . | . 1 . Propulsion . | . 1 . Utility . | . 2 . Weapon 2 | . 1 2 Tool/Special . | . . . Unused Backups 9 | . . 9 Power 2 | . . 2 Propulsion 2 | . . 2 Utility 3 | . . 3 Weapon 2 | . . 2 Tool/Special . | . . . Average Slot Usage (%) 84 | . 100 80 Engine 12 | . 14 12 Treads 26 | . 28 26 Device 3 | . 14 . Storage 3 | . 14 . Protection 8 | . . 11 Energy Gun 6 | . . 8 Ballistic Gun 21 | . 28 19 Peak Build Rating 12 | 7 7 12 Average Rating 9 | 5 7 10 On Entrance 4 | . 7 7 Naked Turns . | . . . Heaviest Build 49 | 14 49 49 Greatest Support 40 | 40 40 40 Greatest Overweight (x) 1 | . 1 1 Average Overweight (x) . | . . . Largest Inventory Capacity 20 | 8 20 20 Average Capacity 6 | 7 9 5 Most Carried 8 | 4 8 8 Average Carried 4 | 2 5 4 Final Capacity 20 | 8 20 5 Final Carried 8 | 4 8 5 Class Distribution -------------------- 51% | Mutant 45% | Subdweller-Mutant 3% | Scavenger-Mutant Dominant Class ---------------- Mutant | -10/Materials Subdweller-Mutant | -10/Subcaves Resources | -11 -10 -10 ----------- Run | Yrd Mat Sub Matter Collected 823 | 326 129 368 Remotely . | . . . Salvage Created 709 | 172 206 331 Parts 60 | 18 17 25 Haulers Intercepted . | . . . Recyclers Shooed 1 | . 1 . Parts Field Recycled . | . . . Retrieved Matter . | . . . Parts Self-Destructed 14 | . . 14 Prevented . | . . . Kills | -11 -10 -10 ------- Run | Yrd Mat Sub Combat Hostiles Destroyed 12 | . 5 7 Guns 12 | . 5 7 Classes Destroyed 7 | 3 3 1 Worker 3 | 1 2 . Tunneler 4 | 4 . . Recycler 1 | 1 . . Watcher 2 | . 2 . Swarmer 3 | . 3 . Grunt 2 | . 2 . Subdweller 7 | . . 7 Best Kill Streak 4 | 2 4 2 Combat Bots Only 3 | . 3 2 Max Kills in Single Turn 2 | 1 2 1 Gunslinging 1 | . 1 . Exploded . | . . . Melee . | . . . Uniques/NPCs Destroyed . | . . . Combat | -11 -10 -10 -------- Run | Yrd Mat Sub Hostile Shots Fired 102 | . 36 66 Missed 27 | . 11 16 Hits 75 | . 25 50 Projectile 75 | . 25 50 AOE 1 | . . 1 Critical Strikes 3 | . 1 2 Damage Taken 1537 | . 285 1252 Core 268 | . 84 184 Absorbed by Shields . | . . . Core Remaining (%) 100 | 100 . . Volleys Fired 127 | 14 34 79 Largest 2 | 2 2 2 Hottest 90 | 40 40 90 Shots Fired 245 | 28 68 149 Gun 236 | 28 68 140 Cannon 9 | . . 9 Launcher . | . . . Special . | . . . Kinetic 187 | 28 68 91 Thermal 58 | . . 58 Explosive . | . . . Electromagnetic . | . . . Robot Hit Streak 16 | 5 7 16 Robot Miss Streak 5 | 5 4 4 Penetration Max . | . . . Secondary Targets 1 | . 1 . Max Gunslinging Chain 1 | . 1 . Shots Hit Robots 153 | 15 34 104 Core Hits 48 | 7 16 25 Critical Kills . | . . . Critical Parts Destroyed 1 | . . 1 Critical Strikes 6 | . . 6 Destroy 5 | . . 5 Blast 1 | . . 1 Melee Attacks . | . . . Impact . | . . . Slashing . | . . . Piercing . | . . . Sneak Attacks . | . . . Combat Hostiles . | . . . Follow-up Attacks . | . . . Damage Inflicted 2539 | 168 398 1973 Guns 2453 | 168 387 1898 Cannons 70 | . . 70 Explosions . | . . . Melee . | . . . Ramming 16 | . 11 5 Kinetic 1670 | 168 387 1115 Thermal 853 | . . 853 Explosive . | . . . Electromagnetic . | . . . Impact . | . . . Slashing . | . . . Piercing . | . . . Highest Corruption . | . . . Average Corruption . | . . . Corruption Purged . | . . . Corruption Blocked . | . . . Overload Shots . | . . . Overflow Damage . | . . . Projectiles . | . . . Explosions . | . . . Melee . | . . . Knockbacks 1 | . . 1 Impact . | . . . Kinetic 1 | . . 1 Secondary . | . . . Self-Inflicted Damage . | . . . Shots . | . . . Rammed 6 | . 5 1 Targets Rammed 6 | . 5 1 Kicked . | . . . Crushed . | . . . Highest Temperature 279 | . 27 279 Average Temperature 39 | . 8 70 Received Heat Transfer 719 | . 135 584 Siege Activations . | . . . Martial Activations . | . . . Shielding Activations . | . . . Robots Disrupted . | . . . Combat Hostiles . | . . . Robots Corrupted . | . . . Combat Hostiles . | . . . Parts Fried . | . . . Impact Corruptions . | . . . Robots Melted . | . . . Combat Hostiles . | . . . Parts Melted 2 | . . 2 Heat Transferred 1025 | . . 1025 Parts Sabotaged . | . . . Parts Stolen . | . . . Parts Stripped . | . . . Power Chain Reactions . | . . . Alert | -11 -10 -10 ------- Run | Yrd Mat Sub Maximum Alert Level . | . . . Low Security (%) 100 | 100 100 . Level 1 . | . . . Level 2 . | . . . Level 3 . | . . . Level 4 . | . . . Level 5 . | . . . High Security . | . . . Max Security . | . . . Peak Influence 67 | 10 67 . Initial 6 | . 6 . Average 11 | 1 15 . Influence Increases 199 | 30 169 . Destroy 0b10 Robot/C 100 | . 100 . Destroy 0b10 Robot/NC 50 | 30 20 . Destroy Leader 24 | . 24 . Successful Hack 9 | . 9 . Destroy Structure 1 | . 1 . Lose Combat Pursuer 15 | . 15 . Influence Decreases 199 | 20 179 . Entered New Map 4 | . 4 . Time Decay 195 | 20 175 . Squads Dispatched . | . . . Investigation . | . . . Extermination . | . . . Reinforcement . | . . . Assault . | . . . Garrison . | . . . Intercept . | . . . Searches Triggered . | . . . Construction Impeded . | . . . Haulers Reinforced . | . . . Active Scanning Responses . | . . . Cargo Convoy Interrupts . | . . . Stealth | -11 -10 -10 --------- Run | Yrd Mat Sub Distress Signals . | . . . Communications Jammed . | . . . Distress Signals . | . . . Times Spotted 32 | . 11 21 Peak Tracking Total 6 | . 3 6 Tactical Retreats 1 | . 1 . Traps | -11 -10 -10 ------- Run | Yrd Mat Sub Traps Triggered 2 | . . 2 Indirectly . | . . . Trap Hack Attempts . | . . . Triggered . | . . . Disarmed . | . . . Reprogrammed . | . . . Reused . | . . . Traps Extracted . | . . . Installed . | . . . Triggered . | . . . Machines | -11 -10 -10 ---------- Run | Yrd Mat Sub Machines Disabled . | . . . Max in Single Turn . | . . . Machines Repaired . | . . . Machines Dismantled . | . . . Machines Sabotaged . | . . . Overloaded Fab Kills . | . . . Hacking | -11 -10 -10 --------- Run | Yrd Mat Sub Machines Accessed 4 | . 2 2 Terminals 2 | . 2 . Fabricators . | . . . Repair Stations . | . . . Recycling Units . | . . . Scanalyzers . | . . . Garrison Access . | . . . Total Hacks 21 | . 8 13 Successful 17 | . 4 13 Failed 4 | . 4 . Catastrophic . | . . . Database Lockouts . | . . . Manual 11 | . 11 . Terminals 8 | . 8 . Fabricators . | . . . Repair Stations . | . . . Recycling Units . | . . . Scanalyzers . | . . . Garrison Access . | . . . Terminal Hacks 14 | . 1 13 Record 12 | . . 12 Robot Analysis 1 | . 1 . Proto ID Catalog 1 | . . 1 Fabricator Hacks . | . . . Repair Station Hacks . | . . . Recycling Unit Hacks . | . . . Scanalyzer . | . . . Garrison Access Hacks . | . . . Unauthorized Hacks 3 | . 3 . Terminals 3 | . 3 . Botnet 1 | . 1 . Skim 2 | . 2 . Fabricators . | . . . Repair Stations . | . . . Recycling Units . | . . . Scanalyzers . | . . . Garrison Access . | . . . Data Cores Recovered . | . . . Used . | . . . Hacking Detections 2 | . 2 . Full Trace Events . | . . . Feedback Events . | . . . Feedback Blocked . | . . . Robot Schematics Acquired . | . . . Robots Built . | . . . Authchips . | . . . Time . | . . . Total Robot Build Rating . | . . . Part Schematics Acquired . | . . . Parts Built . | . . . Authchips . | . . . Time . | . . . Total Part Build Rating . | . . . Parts Repaired . | . . . Time . | . . . Parts Recycled . | . . . Recycled Matter . | . . . Retrieved Matter . | . . . Retrieved Components . | . . . Parts Scanalyzed . | . . . Part Schematics Acquired . | . . . Parts Damaged . | . . . Bothacking | -11 -10 -10 ------------ Run | Yrd Mat Sub Used RIF Installer . | . . . Robots Hacked . | . . . Non-combat . | . . . Combat . | . . . Robot Hacks Applied . | . . . Relay Couplers Released . | . . . Fabnet Peak Effective % . | . . . Robots Rewired . | . . . Allies Hacked . | . . . Hacks Repelled . | . . . Allies | -11 -10 -10 -------- Run | Yrd Mat Sub Total Allies . | . . . Largest Group . | . . . Highest-Rated Group . | . . . Highest-Rated Ally . | . . . Total Orders . | . . . Ally Attacks . | . . . Total Damage . | . . . Kills . | . . . Allies Corrupted . | . . . Allies Melted . | . . . Intel | -11 -10 -10 ------- Run | Yrd Mat Sub Active Infowar (turns) 828 | 119 576 133 Optics 127 | . . 127 Seismic 701 | 119 576 6 Robot Analysis Total 1 | . 1 . Derelict Logs Recovered . | . . . Drone Launches . | . . . Drone Recoveries . | . . . Exploration | -11 -10 -10 ------------- Run | Yrd Mat Sub Turns Passed 2719 | 214 576 1929 Spaces Moved 1297 | 58 275 964 Core 2 | 2 . . Treads 1295 | 56 275 964 Legs . | . . . Wheels . | . . . Hover . | . . . Flight . | . . . Fastest Speed 50 | 50 160 160 Average Speed 164 | 156 169 163 Slowest Speed 240 | 160 240 240 Overloaded Moves . | . . . Propulsion Burnouts . | . . . Robots Hopped . | . . . Potential Cave-ins . | . . . Cave-ins Triggered . | . . . Exploration Rate (%) 34 | 4 50 49 Regions Visited 2 Branch Regions 1 Pre-discovered Areas 2 | . . 2 Known Exits Taken . | . . . Unknown Exits Taken 2 | 1 1 . Scrap Searched 3 | . . 3 Spaces Dug . | . . . Terrain Destroyed 1 | . . 1 Melee . | . . . Projectile 1 | . . 1 AOE . | . . . Terrain Rammed . | . . . Walls Destroyed . | . . . Machines Disabled . | . . . Actions | -11 -10 -10 --------- Run | Yrd Mat Sub Total 1639 | 153 322 1164 Wait 149 | 71 5 73 Move 1295 | 57 274 964 Hop . | . . . Pick Up 15 | 4 3 8 Fast Attach 11 | 7 . 4 Attach 1 | . . 1 Detach . | . . . Swap 15 | . 1 14 Drop 15 | . . 15 Fire 127 | 14 34 79 Melee . | . . . Ram . | . . . Kick . | . . . Crush 6 | . 5 1 Escape Stasis . | . . . Rewire . | . . . Trap . | . . . Miscellaneous 5 | . . 5 Route ------- -11/Scrapyard -10/Materials (discovered 3 exits: [*Mat] / [*Min] / *Sub) -10/Subcaves History --------- Turn | Location | Event 4 | -11/Scrapyard | Discovered new exit (range 16) 215 | -11/Scrapyard | Entered Materials 311 | -10/Materials | Build established: Mutant 500 | -10/Materials | Discovered new exit (range 12) 658 | -10/Materials | Discovered new exit (range 16) 779 | -10/Materials | Discovered new exit (range 6) 791 | -10/Materials | Entered Subcaves 792 | -10/Subcaves | Approached by a straggling Scientist 971 | -10/Subcaves | Ambushed by swarm of Subdwellers 1127 | -10/Subcaves | Visited Clippyterm 1132 | -10/Subcaves | Learned location of Section 7 (-3) 1278 | -10/Subcaves | Visited 4L-MR0's lab 1639 | -10/Subcaves | Build established: Subdweller-Mutant 2119 | -10/Subcaves | Shifting Twisted Machinery released Sub. Beam Cannon 2119 | -10/Subcaves | Shifting Twisted Machinery released Mak. Axe 2230 | -10/Subcaves | Shifting Twisted Machinery released Piercing Trap 2295 | -10/Subcaves | Shifting Twisted Machinery released Barrage Gun 2312 | -10/Subcaves | Learned location of Zion (-6) 2312 | -10/Subcaves | Met a Zionite searching for "candidates" 2357 | -10/Subcaves | Core integrity fell below 50% 2661 | -10/Subcaves | Shifting Twisted Machinery released Sub. Laser 2663 | -10/Subcaves | Shifting Twisted Machinery released Sub. Laser 2695 | -10/Subcaves | Core integrity fell below 20% 2720 | -10/Subcaves | Destroyed by 6X-B9M(R) with Subdweller Laser Last Messages --------------- 02373_ Destroyed Sub. Laser. 02373_ IQ-9MN(R) destroyed. 02378_ Acquired 30 matter. 02379_ Acquired 15 matter. 02384_ Acquired Sub. Power Source. 02424_ Acquired Sub. Machine Gun. 02435_ Acquired Barrage Gun. 02480_ Acquired 30 matter. 02495_ Sub. Power Source shoots sparks and powers down. 02591_ Acquired Sub. Optics. 02592_ Acquired 2 matter. Sub. Laser falls loose from the Twisted Machinery. 02676_ Dropped Sub. Laser. 02677_ Dropped Broken Sub. Machine Gun. 02678_ Acquired Sub. Laser. 02691_ Lgt. Treads destroyed. 02718_ Sub. Optics destroyed. 02719_ 6X-B9M(R) suffers critical hit (Destroy). Map ----- +----------------------------------------------------+ | ?????????????????????????????????????????????????? | | ?????????????????????????????????????????????????? | | ?????????????????????????????????????????????????? | | ?????????????????????????????????????????????????? | | ?????????????????????????????????????????????????? | | ?????????????????????????????????????????????????? | | ?????????????????????????????????????????????????? | | ?????????????????????????????????????????????????? | | ?????????????????????????????????????????????????? | | ?????????????????????????????????????????????????? | | ?????????????????????????????????????????????????? | | ?????????????????????????????????????????????????? | | ?????????????????????????????????????????????????? | | ?????????????????????????????????????????????????? | | ?????????????????????????????????????????????????? | | ?????????????????????????????????????????????????? | | ?????????????????????????????????#####???????????? | | ?????????????????????????????????# ????????????? | | ??????????????????????????????### ?????????????? | | ????????????????????????????## ?????????????? | | ????????????????????????????# ##???????????? | | ???????????????????????????## ? #???????????? | | ???????????????????????????# ??# ???????????? | | ????????????????????????#### #???# #???????????? | | ????????????????????????# ## #???# ???????????? | | ???????????????????????##@# #??? #???????????? | | ???????????????????????# #???# #???????????? | | ???????????????????????# #???# ##????##????? | | ???????????????????????## #???# #?### ###??? | | ????????????????????????## R ##### #### "##?? | | ?????????????????????????## R ## ## ##"""[ #?? | | ??????????????????????????# #?#" " #?? | | ??????????????????????????## ### ["" #?# | | ??"#???????????????????????# # ## "" ## | | ?# ????????????????????????######### ##"" | | ? ???????????????????????????????# #####""" # | | ? #?????##????????????????????????# ##?##" " ## | | # ####?## ???????????######??????# #### " ## | | " " ### ?????????## ##?????# " | | #???????## ##????## " | | ##??????# ##????## | | #? #????### ##????## | | #???# #????# ##????## | | ##??# ##????# #?????# | | #??# ###### #?????## ### ## | | #??# #?????#####?## #? | | ##?# #?????## #????# #? | | ##?# ## ## #?????# ####### ## | | #### ########## ###??## ## # | | #?## ##???#### #?## | +----------------------------------------------------+ Best States ------------- Heat Dissipation 25 Energy Generation 15 Energy Capacity 250 Matter Stores 300 Matter Capacity 300 Sight Range 21 Terrain Scan Density 10 Armor Coverage 800 Evasion (%) 40 Recoil Reduction 2 Item Schematics ----------------- None Robot Schematics ------------------ None Fabricated ------------ Nothing Repaired ---------- Nothing Alien Tech Used ----------------- None Achievements -------------- None Challenges ------------ None Game ------ Seed SchematicImprinterSegregator Manual? 0 Play Time 00:15:26 Cumulative 163.6 hours Start 2025.08.06 @ 15:43:22 End 2025.08.06 @ 16:02:51 Sessions 2 Manual Loads 0 Difficulty Rogue Special Mode None Game No. 81 Rogue 81 Adventurer 0 Explorer 0 Win Type - Total 18 Types 8/1/5/1/0/1/1/1/0/0 Lore% 64 Gallery% 59 Achievement% 69 Wizard Run 0 Options --------- Layout 1 ASCII 0 Keyboard 0 Movement Arrows Keybinds 0 Fullscreen 2 Font 24/Tamsyn Map View 50x35 Zoom Use 0% Tactical HUD 1 Map Filters NONE Filters NONE Steam 1 RUN: 918d3dd3-5ca6-4ea6-8d74-14ce9eb68d0e